{"text_format":"1","workbook":"xlsx","n_sheets":6,"sheets":["Banque d'outils","Réf_fraises","Réf_forets","Réf_alésoirs","Réf_index","Temp"],"not_rendered":{"charts":0,"images":1,"macros":1,"external_links":0,"defined_names":9,"comments":0,"pivot_tables":0},"unopened":[],"bounds":{"document_bytes":16777216,"sheet_cells":100000,"rows_first":2000,"rows_last":500,"rows_between":2000,"halvings":0,"cell_chars":16384,"cell_head_chars":4096},"cells_cut":0,"cells_raw":0,"read":"whole","date_system":"1900"}

{"sheet":"Banque d'outils","index":0,"n_rows":0,"n_cols":0,"rows_kept":0,"cut":false,"hidden":false,"merged":[]}

{"sheet":"Réf_fraises","index":1,"n_rows":21,"n_cols":11,"rows_kept":21,"cut":false,"hidden":false,"merged":[[0,0,0,10]]}
["Fraises"]
["Matière","Type","Opération","Diamètre","Nombre de dents Z","Longueur","Référence","Fournisseur","Emplacement","Stock","Beeper"]
["Alu","CYLINDRIQUE","Ebauche",1,3,"Normale","","Fraisa","","3","5"]
["Inox","TORIQUE","Finition",4,6,"Mi-longue","","Fraisa","","13","11"]
["Titane","TORIQUE","Finition","3",5,"Extra-longue","","Fraisa","","5","3"]
["Titane","TORIQUE","Finition","4","6","Longue","","Fraisa","","5","6"]
["Titane","HÉMISPHÉRIQUES","Finition","4","6","Longue","","Fraisa","","8","6"]
["Inox","CYLINDRIQUE","Ravageuse","6","6","Mi-longue","","Fraisa","","4","6"]
["Titane","CYLINDRIQUE","Ebauche/Finition","20","6","Mi-longue","","Fraisa","","7","6"]
["Acier","CYLINDRIQUE","Ravageuse","20","5","Normale","","Fraisa","","3","4"]
["Acier","HÉMISPHÉRIQUES","Finition","10","3","Normale","","Fraisa","","5","3"]
["Acier","TORIQUE","Ebauche","16","4","Mi-longue","","Fraisa","","3","5"]
["Alu","CYLINDRIQUE","Ebauche","16","4","Extra-longue","","Fraisa","","7","3"]
["Alu","TORIQUE","Finition","13","4","Mi-longue","","Fraisa","","4","2"]
["Titane","CYLINDRIQUE","Ebauche","8","4","Mi-longue","","Fraisa","","3","2"]
["Alu","CYLINDRIQUE","Ebauche","1","2","Courte","Test","Fraisa","Test","1","1"]
["Inox","HÉMISPHÉRIQUES","Finition","4","5","Longue","","Fraisa","","5","6"]
["Alu","CYLINDRIQUE","Ebauche","1","2","Courte","","","","3",""]
["Alu","CYLINDRIQUE","Ebauche","3","3","Courte","","","","3",""]
["Titane","HÉMISPHÉRIQUES","Finition","4","5","Mi-longue","","","","7",""]
["Acier","HÉMISPHÉRIQUES","Ebauche/Finition","3","5","Mi-longue","","Fraisa","","2","4"]

{"sheet":"Réf_forets","index":2,"n_rows":12,"n_cols":9,"rows_kept":12,"cut":false,"hidden":false,"merged":[[0,0,0,8]]}
["Forets"]
["Matière","Type","Diamètre","Série","Référence","Fournisseur","Emplacement","Stock","Beeper"]
["Carbure","Foret à pointer",1.5,"5xd","","Codimec","","4","4"]
["Carbure","Foret",10.1,"8xd","","Codimec","","5","4"]
["ARS","Foret à pointer",1.2,"7xd","","Codimec","","4","4"]
["ARS","Foret",1.8,"7xd","","Codimec","","4","4"]
["ARS","Foret",1.8,"12xd","","Codimec","","4","7"]
["Carbure","Foret",1.8,"12xd","","Codimec","","4","7"]
["Carbure","Foret à pointer",1.8,"5xd","","Codimec","","4","7"]
["ARS","Foret à pointer",1,"3xd","Test","Codimec","Test","1","1"]
["Carbure","Foret à pointer",1,"3xd","","Codimec","","5","4"]
["ARS","Foret à pointer","1","3xd","","","","1",""]

{"sheet":"Réf_alésoirs","index":3,"n_rows":13,"n_cols":6,"rows_kept":13,"cut":false,"hidden":false,"merged":[[0,0,0,5]]}
["Alésoirs"]
["Diamètre","Référence","Fournisseur","Emplacement","Stock","Beeper"]
["0.40","Test","Maillefer","Test","1","1"]
["0.46","","","","9","4"]
["1.25","","","","8","9"]
["0.41","","","","4","3"]
["0.44","","","","4","3"]
["11.00","","","","4","3"]
["5.75","","","","7","8"]
["0.44","","","","5","6"]
["11.80","","","","6","2"]
["12.02","","","","3","1"]
["0.40","","","","3",""]

{"sheet":"Réf_index","index":4,"n_rows":479,"n_cols":22,"rows_kept":479,"cut":false,"hidden":false,"merged":[]}
["Matière fraise","Type fraise","Opération fraise","Diamètre fraise","Nombre de dents fraise","Longueur fraise","Référence fraise","Fournisseur fraise","Emplacement fraise","Stock","Beeper","Diamètre alésoir","Référence alésoir","Fournisseur alésoir","Emplacement alésoir","Matière foret","Type foret","Diamètre foret","Série foret","Référence foret","Fournisseur foret","Emplacement foret"]
["Alu","CYLINDRIQUE","Ebauche",1,2,"Courte",null,"Fraisa",null,1,1,"0.40",null,null,null,"ARS","Foret à pointer",1,"3xd",null,"Codimec"]
["Acier","HÉMISPHÉRIQUES","Finition",{"$f":"D2+1","v":2},3,"Normale",null,null,null,{"$f":"J2+1","v":2},{"$f":"K2+1","v":2},"0.41",null,null,null,"Carbure","Foret",{"$f":"R2+0.1","v":1.1000000000000001},"5xd"]
["Inox","TORIQUE","Ebauche/Finition",{"$f":"D3+1","v":3},4,"Mi-longue",null,null,null,{"$f":"J3+1","v":3},3,"0.42",null,null,null,null,null,{"$f":"R3+0.1","v":1.2000000000000002},"7xd"]
["Titane",null,"Ravageuse",{"$f":"D4+1","v":4},5,"Longue",null,null,null,4,4,"0.44",null,null,null,null,null,1.3000000000000003,"8xd"]
[null,null,null,5,6,"Extra-longue",null,null,null,5,5,"0.45",null,null,null,null,null,1.4000000000000004,"12xd"]
[null,null,null,6,7,null,null,null,null,6,6,"0.46",null,null,null,null,null,1.5000000000000004,"15xd"]
[null,null,null,7,8,null,null,null,null,7,7,"0.47",null,null,null,null,null,1.6000000000000005,"20xd"]
[null,null,null,8,9,null,null,null,null,8,8,"0.48",null,null,null,null,null,1.7000000000000006,"25xd"]
[null,null,null,9,10,null,null,null,null,9,9,"0.49",null,null,null,null,null,1.8000000000000007,"30xd"]
[null,null,null,10,null,null,null,null,null,10,10,"0.50",null,null,null,null,null,1.9000000000000008]
[null,null,null,{"$f":"D11+1","v":11},null,null,null,null,null,11,11,"0.51",null,null,null,null,null,2.0000000000000009]
[null,null,null,12,null,null,null,null,null,12,{"$f":"K12+1","v":12},"0.52",null,null,null,null,null,2.100000000000001]
[null,null,null,13,null,null,null,null,null,13,13,"0.53",null,null,null,null,null,2.2000000000000011]
[null,null,null,14,null,null,null,null,null,14,14,"0.54",null,null,null,null,null,2.3000000000000012]
[null,null,null,15,null,null,null,null,null,15,15,"0.55",null,null,null,null,null,2.4000000000000012]
[null,null,null,16,null,null,null,null,null,16,16,"0.56",null,null,null,null,null,2.5000000000000013]
[null,null,null,17,null,null,null,null,null,17,17,"0.58",null,null,null,null,null,2.6000000000000014]
[null,null,null,18,null,null,null,null,null,18,18,"0.59",null,null,null,null,null,2.7000000000000015]
[null,null,null,{"$f":"D19+1","v":19},null,null,null,null,null,{"$f":"J19+1","v":19},19,"0.60",null,null,null,null,null,2.8000000000000016]
[null,null,null,{"$f":"D20+1","v":20},null,null,null,null,null,20,20,"0.61",null,null,null,null,null,2.9000000000000017]
[null,null,null,null,null,null,null,null,null,21,21,"0.62",null,null,null,null,null,3.0000000000000018]
[null,null,null,null,null,null,null,null,null,22,{"$f":"K22+1","v":22},"0.63",null,null,null,null,null,3.1000000000000019]
[null,null,null,null,null,null,null,null,null,23,23,"0.64",null,null,null,null,null,3.200000000000002]
[null,null,null,null,null,null,null,null,null,24,24,"0.65",null,null,null,null,null,3.300000000000002]
[null,null,null,null,null,null,null,null,null,25,25,"0.66",null,null,null,null,null,3.4000000000000021]
[null,null,null,null,null,null,null,null,null,26,26,"0.67",null,null,null,null,null,3.5000000000000022]
[null,null,null,null,null,null,null,null,null,27,27,"0.68",null,null,null,null,null,3.6000000000000023]
[null,null,null,null,null,null,null,null,null,28,28,"0.69",null,null,null,null,null,3.7000000000000024]
[null,null,null,null,null,null,null,null,null,29,29,"0.70",null,null,null,null,null,3.8000000000000025]
[null,null,null,null,null,null,null,null,null,30,{"$f":"K30+1","v":30},"0.71",null,null,null,null,null,3.9000000000000026]
[null,null,null,null,null,null,null,null,null,31,null,"0.72",null,null,null,null,null,4.0000000000000027]
[null,null,null,null,null,null,null,null,null,32,null,"0.73",null,null,null,null,null,4.1000000000000023]
[null,null,null,null,null,null,null,null,null,33,null,"0.74",null,null,null,null,null,4.200000000000002]
[null,null,null,null,null,null,null,null,null,34,null,"0.75",null,null,null,null,null,4.3000000000000016]
[null,null,null,null,null,null,null,null,null,{"$f":"J35+1","v":35},null,"0.76",null,null,null,null,null,4.4000000000000012]
[null,null,null,null,null,null,null,null,null,36,null,"0.77",null,null,null,null,null,4.5000000000000009]
[null,null,null,null,null,null,null,null,null,37,null,"0.78",null,null,null,null,null,4.6000000000000005]
[null,null,null,null,null,null,null,null,null,38,null,"0.79",null,null,null,null,null,4.7]
[null,null,null,null,null,null,null,null,null,39,null,"0.80",null,null,null,null,null,4.8]
[null,null,null,null,null,null,null,null,null,40,null,"0.81",null,null,null,null,null,4.8999999999999995]
[null,null,null,null,null,null,null,null,null,41,null,"0.82",null,null,null,null,null,4.9999999999999991]
[null,null,null,null,null,null,null,null,null,42,null,"0.83",null,null,null,null,null,5.0999999999999988]
[null,null,null,null,null,null,null,null,null,43,null,"0.84",null,null,null,null,null,5.1999999999999984]
[null,null,null,null,null,null,null,null,null,44,null,"0.85",null,null,null,null,null,5.299999999999998]
[null,null,null,null,null,null,null,null,null,45,null,"0.86",null,null,null,null,null,5.3999999999999977]
[null,null,null,null,null,null,null,null,null,46,null,"0.87",null,null,null,null,null,5.4999999999999973]
[null,null,null,null,null,null,null,null,null,47,null,"0.88",null,null,null,null,null,5.599999999999997]
[null,null,null,null,null,null,null,null,null,48,null,"0.89",null,null,null,null,null,5.6999999999999966]
[null,null,null,null,null,null,null,null,null,49,null,"0.90",null,null,null,null,null,5.7999999999999963]
[null,null,null,null,null,null,null,null,null,50,null,"0.91",null,null,null,null,null,5.8999999999999959]
[null,null,null,null,null,null,null,null,null,{"$f":"J51+1","v":51},null,"0.92",null,null,null,null,null,5.9999999999999956]
[null,null,null,null,null,null,null,null,null,52,null,"0.93",null,null,null,null,null,6.0999999999999952]
[null,null,null,null,null,null,null,null,null,53,null,"0.94",null,null,null,null,null,6.1999999999999948]
[null,null,null,null,null,null,null,null,null,54,null,"0.95",null,null,null,null,null,6.2999999999999945]
[null,null,null,null,null,null,null,null,null,55,null,"0.96",null,null,null,null,null,6.3999999999999941]
[null,null,null,null,null,null,null,null,null,56,null,"0.97",null,null,null,null,null,6.4999999999999938]
[null,null,null,null,null,null,null,null,null,57,null,"0.98",null,null,null,null,null,6.5999999999999934]
[null,null,null,null,null,null,null,null,null,58,null,"0.99",null,null,null,null,null,6.6999999999999931]
[null,null,null,null,null,null,null,null,null,59,null,"1.00",null,null,null,null,null,6.7999999999999927]
[null,null,null,null,null,null,null,null,null,60,null,"1.01",null,null,null,null,null,6.8999999999999924]
[null,null,null,null,null,null,null,null,null,61,null,"1.02",null,null,null,null,null,6.999999999999992]
[null,null,null,null,null,null,null,null,null,62,null,"1.03",null,null,null,null,null,7.0999999999999917]
[null,null,null,null,null,null,null,null,null,63,null,"1.04",null,null,null,null,null,7.1999999999999913]
[null,null,null,null,null,null,null,null,null,64,null,"1.05",null,null,null,null,null,7.2999999999999909]
[null,null,null,null,null,null,null,null,null,65,null,"1.06",null,null,null,null,null,7.3999999999999906]
[null,null,null,null,null,null,null,null,null,66,null,"1.07",null,null,null,null,null,7.4999999999999902]
[null,null,null,null,null,null,null,null,null,{"$f":"J67+1","v":67},null,"1.08",null,null,null,null,null,{"$f":"R67+0.1","v":7.5999999999999899}]
[null,null,null,null,null,null,null,null,null,68,null,"1.09",null,null,null,null,null,7.6999999999999895]
[null,null,null,null,null,null,null,null,null,69,null,"1.10",null,null,null,null,null,7.7999999999999892]
[null,null,null,null,null,null,null,null,null,70,null,"1.11",null,null,null,null,null,7.8999999999999888]
[null,null,null,null,null,null,null,null,null,71,null,"1.12",null,null,null,null,null,7.9999999999999885]
[null,null,null,null,null,null,null,null,null,72,null,"1.13",null,null,null,null,null,8.099999999999989]
[null,null,null,null,null,null,null,null,null,73,null,"1.14",null,null,null,null,null,8.1999999999999886]
[null,null,null,null,null,null,null,null,null,74,null,"1.15",null,null,null,null,null,8.2999999999999883]
[null,null,null,null,null,null,null,null,null,75,null,"1.16",null,null,null,null,null,8.3999999999999879]
[null,null,null,null,null,null,null,null,null,76,null,"1.17",null,null,null,null,null,8.4999999999999876]
[null,null,null,null,null,null,null,null,null,77,null,"1.18",null,null,null,null,null,8.5999999999999872]
[null,null,null,null,null,null,null,null,null,78,null,"1.19",null,null,null,null,null,8.6999999999999869]
[null,null,null,null,null,null,null,null,null,79,null,"1.20",null,null,null,null,null,8.7999999999999865]
[null,null,null,null,null,null,null,null,null,80,null,"1.21",null,null,null,null,null,8.8999999999999861]
[null,null,null,null,null,null,null,null,null,81,null,"1.22",null,null,null,null,null,8.9999999999999858]
[null,null,null,null,null,null,null,null,null,82,null,"1.23",null,null,null,null,null,9.0999999999999854]
[null,null,null,null,null,null,null,null,null,83,null,"1.24",null,null,null,null,null,9.1999999999999851]
[null,null,null,null,null,null,null,null,null,84,null,"1.25",null,null,null,null,null,9.2999999999999847]
[null,null,null,null,null,null,null,null,null,85,null,"1.26",null,null,null,null,null,9.3999999999999844]
[null,null,null,null,null,null,null,null,null,86,null,"1.27",null,null,null,null,null,9.499999999999984]
[null,null,null,null,null,null,null,null,null,87,null,"1.28",null,null,null,null,null,9.5999999999999837]
[null,null,null,null,null,null,null,null,null,88,null,"1.29",null,null,null,null,null,9.6999999999999833]
[null,null,null,null,null,null,null,null,null,89,null,"1.30",null,null,null,null,null,9.7999999999999829]
[null,null,null,null,null,null,null,null,null,90,null,"1.31",null,null,null,null,null,9.8999999999999826]
[null,null,null,null,null,null,null,null,null,91,null,"1.32",null,null,null,null,null,10]
[null,null,null,null,null,null,null,null,null,92,null,"1.33",null,null,null,null,null,10.1]
[null,null,null,null,null,null,null,null,null,93,null,"1.35",null,null,null,null,null,10.199999999999999]
[null,null,null,null,null,null,null,null,null,94,null,"1.36",null,null,null,null,null,10.299999999999999]
[null,null,null,null,null,null,null,null,null,95,null,"1.38",null,null,null,null,null,10.399999999999999]
[null,null,null,null,null,null,null,null,null,96,null,"1.39",null,null,null,null,null,10.499999999999998]
[null,null,null,null,null,null,null,null,null,97,null,"1.40",null,null,null,null,null,10.599999999999998]
[null,null,null,null,null,null,null,null,null,98,null,"1.41",null,null,null,null,null,10.699999999999998]
[null,null,null,null,null,null,null,null,null,99,null,"1.42",null,null,null,null,null,10.799999999999997]
[null,null,null,null,null,null,null,null,null,100,null,"1.43",null,null,null,null,null,10.899999999999997]
[null,null,null,null,null,null,null,null,null,null,null,"1.44",null,null,null,null,null,10.999999999999996]
[null,null,null,null,null,null,null,null,null,null,null,"1.45",null,null,null,null,null,11.099999999999996]
[null,null,null,null,null,null,null,null,null,null,null,"1.46",null,null,null,null,null,11.199999999999996]
[null,null,null,null,null,null,null,null,null,null,null,"1.47",null,null,null,null,null,11.299999999999995]
[null,null,null,null,null,null,null,null,null,null,null,"1.48",null,null,null,null,null,11.399999999999995]
[null,null,null,null,null,null,null,null,null,null,null,"1.49",null,null,null,null,null,11.499999999999995]
[null,null,null,null,null,null,null,null,null,null,null,"1.50",null,null,null,null,null,11.599999999999994]
[null,null,null,null,null,null,null,null,null,null,null,"1.51",null,null,null,null,null,11.699999999999994]
[null,null,null,null,null,null,null,null,null,null,null,"1.52",null,null,null,null,null,11.799999999999994]
[null,null,null,null,null,null,null,null,null,null,null,"1.53",null,null,null,null,null,11.899999999999993]
[null,null,null,null,null,null,null,null,null,null,null,"1.54",null,null,null,null,null,11.999999999999993]
[null,null,null,null,null,null,null,null,null,null,null,"1.55",null,null,null,null,null,{"$f":"R112+0.5","v":12.499999999999993}]
[null,null,null,null,null,null,null,null,null,null,null,"1.56",null,null,null,null,null,{"$f":"R113+0.5","v":12.999999999999993}]
[null,null,null,null,null,null,null,null,null,null,null,"1.57",null,null,null,null,null,13.499999999999993]
[null,null,null,null,null,null,null,null,null,null,null,"1.58",null,null,null,null,null,13.999999999999993]
[null,null,null,null,null,null,null,null,null,null,null,"1.59",null,null,null,null,null,14.499999999999993]
[null,null,null,null,null,null,null,null,null,null,null,"1.60",null,null,null,null,null,14.999999999999993]
[null,null,null,null,null,null,null,null,null,null,null,"1.61",null,null,null,null,null,15.499999999999993]
[null,null,null,null,null,null,null,null,null,null,null,"1.62",null,null,null,null,null,15.999999999999993]
[null,null,null,null,null,null,null,null,null,null,null,"1.65",null,null,null,null,null,16.499999999999993]
[null,null,null,null,null,null,null,null,null,null,null,"1.66",null,null,null,null,null,{"$f":"R121+0.5","v":16.999999999999993}]
[null,null,null,null,null,null,null,null,null,null,null,"1.67",null,null,null,null,null,17.499999999999993]
[null,null,null,null,null,null,null,null,null,null,null,"1.69",null,null,null,null,null,17.999999999999993]
[null,null,null,null,null,null,null,null,null,null,null,"1.70",null,null,null,null,null,18.499999999999993]
[null,null,null,null,null,null,null,null,null,null,null,"1.71",null,null,null,null,null,18.999999999999993]
[null,null,null,null,null,null,null,null,null,null,null,"1.72",null,null,null,null,null,{"$f":"R126+0.5","v":19.499999999999993}]
[null,null,null,null,null,null,null,null,null,null,null,"1.74",null,null,null,null,null,19.999999999999993]
[null,null,null,null,null,null,null,null,null,null,null,"1.75"]
[null,null,null,null,null,null,null,null,null,null,null,"1.76"]
[null,null,null,null,null,null,null,null,null,null,null,"1.77"]
[null,null,null,null,null,null,null,null,null,null,null,"1.78"]
[null,null,null,null,null,null,null,null,null,null,null,"1.79"]
[null,null,null,null,null,null,null,null,null,null,null,"1.80"]
[null,null,null,null,null,null,null,null,null,null,null,"1.81"]
[null,null,null,null,null,null,null,null,null,null,null,"1.82"]
[null,null,null,null,null,null,null,null,null,null,null,"1.83"]
[null,null,null,null,null,null,null,null,null,null,null,"1.85"]
[null,null,null,null,null,null,null,null,null,null,null,"1.86"]
[null,null,null,null,null,null,null,null,null,null,null,"1.88"]
[null,null,null,null,null,null,null,null,null,null,null,"1.89"]
[null,null,null,null,null,null,null,null,null,null,null,"1.90"]
[null,null,null,null,null,null,null,null,null,null,null,"1.91"]
[null,null,null,null,null,null,null,null,null,null,null,"1.94"]
[null,null,null,null,null,null,null,null,null,null,null,"1.95"]
[null,null,null,null,null,null,null,null,null,null,null,"1.96"]
[null,null,null,null,null,null,null,null,null,null,null,"1.97"]
[null,null,null,null,null,null,null,null,null,null,null,"1.98"]
[null,null,null,null,null,null,null,null,null,null,null,"1.99"]
[null,null,null,null,null,null,null,null,null,null,null,"2.00"]
[null,null,null,null,null,null,null,null,null,null,null,"2.01"]
[null,null,null,null,null,null,null,null,null,null,null,"2.02"]
[null,null,null,null,null,null,null,null,null,null,null,"2.03"]
[null,null,null,null,null,null,null,null,null,null,null,"2.04"]
[null,null,null,null,null,null,null,null,null,null,null,"2.05"]
[null,null,null,null,null,null,null,null,null,null,null,"2.06"]
[null,null,null,null,null,null,null,null,null,null,null,"2.07"]
[null,null,null,null,null,null,null,null,null,null,null,"2.08"]
[null,null,null,null,null,null,null,null,null,null,null,"2.09"]
[null,null,null,null,null,null,null,null,null,null,null,"2.10"]
[null,null,null,null,null,null,null,null,null,null,null,"2.11"]
[null,null,null,null,null,null,null,null,null,null,null,"2.12"]
[null,null,null,null,null,null,null,null,null,null,null,"2.13"]
[null,null,null,null,null,null,null,null,null,null,null,"2.14"]
[null,null,null,null,null,null,null,null,null,null,null,"2.15"]
[null,null,null,null,null,null,null,null,null,null,null,"2.16"]
[null,null,null,null,null,null,null,null,null,null,null,"2.17"]
[null,null,null,null,null,null,null,null,null,null,null,"2.18"]
[null,null,null,null,null,null,null,null,null,null,null,"2.19"]
[null,null,null,null,null,null,null,null,null,null,null,"2.20"]
[null,null,null,null,null,null,null,null,null,null,null,"2.21"]
[null,null,null,null,null,null,null,null,null,null,null,"2.22"]
[null,null,null,null,null,null,null,null,null,null,null,"2.25"]
[null,null,null,null,null,null,null,null,null,null,null,"2.27"]
[null,null,null,null,null,null,null,null,null,null,null,"2.29"]
[null,null,null,null,null,null,null,null,null,null,null,"2.30"]
[null,null,null,null,null,null,null,null,null,null,null,"2.31"]
[null,null,null,null,null,null,null,null,null,null,null,"2.32"]
[null,null,null,null,null,null,null,null,null,null,null,"2.33"]
[null,null,null,null,null,null,null,null,null,null,null,"2.34"]
[null,null,null,null,null,null,null,null,null,null,null,"2.35"]
[null,null,null,null,null,null,null,null,null,null,null,"2.36"]
[null,null,null,null,null,null,null,null,null,null,null,"2.37"]
[null,null,null,null,null,null,null,null,null,null,null,"2.38"]
[null,null,null,null,null,null,null,null,null,null,null,"2.39"]
[null,null,null,null,null,null,null,null,null,null,null,"2.40"]
[null,null,null,null,null,null,null,null,null,null,null,"2.41"]
[null,null,null,null,null,null,null,null,null,null,null,"2.42"]
[null,null,null,null,null,null,null,null,null,null,null,"2.43"]
[null,null,null,null,null,null,null,null,null,null,null,"2.44"]
[null,null,null,null,null,null,null,null,null,null,null,"2.45"]
[null,null,null,null,null,null,null,null,null,null,null,"2.47"]
[null,null,null,null,null,null,null,null,null,null,null,"2.48"]
[null,null,null,null,null,null,null,null,null,null,null,"2.49"]
[null,null,null,null,null,null,null,null,null,null,null,"2.50"]
[null,null,null,null,null,null,null,null,null,null,null,"2.51"]
[null,null,null,null,null,null,null,null,null,null,null,"2.52"]
[null,null,null,null,null,null,null,null,null,null,null,"2.53"]
[null,null,null,null,null,null,null,null,null,null,null,"2.54"]
[null,null,null,null,null,null,null,null,null,null,null,"2.55"]
[null,null,null,null,null,null,null,null,null,null,null,"2.58"]
[null,null,null,null,null,null,null,null,null,null,null,"2.59"]
[null,null,null,null,null,null,null,null,null,null,null,"2.60"]
[null,null,null,null,null,null,null,null,null,null,null,"2.61"]
[null,null,null,null,null,null,null,null,null,null,null,"2.62"]
[null,null,null,null,null,null,null,null,null,null,null,"2.64"]
[null,null,null,null,null,null,null,null,null,null,null,"2.65"]
[null,null,null,null,null,null,null,null,null,null,null,"2.66"]
[null,null,null,null,null,null,null,null,null,null,null,"2.67"]
[null,null,null,null,null,null,null,null,null,null,null,"2.68"]
[null,null,null,null,null,null,null,null,null,null,null,"2.69"]
[null,null,null,null,null,null,null,null,null,null,null,"2.70"]
[null,null,null,null,null,null,null,null,null,null,null,"2.71"]
[null,null,null,null,null,null,null,null,null,null,null,"2.74"]
[null,null,null,null,null,null,null,null,null,null,null,"2.75"]
[null,null,null,null,null,null,null,null,null,null,null,"2.78"]
[null,null,null,null,null,null,null,null,null,null,null,"2.79"]
[null,null,null,null,null,null,null,null,null,null,null,"2.80"]
[null,null,null,null,null,null,null,null,null,null,null,"2.81"]
[null,null,null,null,null,null,null,null,null,null,null,"2.82"]
[null,null,null,null,null,null,null,null,null,null,null,"2.85"]
[null,null,null,null,null,null,null,null,null,null,null,"2.89"]
[null,null,null,null,null,null,null,null,null,null,null,"2.90"]
[null,null,null,null,null,null,null,null,null,null,null,"2.91"]
[null,null,null,null,null,null,null,null,null,null,null,"2.92"]
[null,null,null,null,null,null,null,null,null,null,null,"2.95"]
[null,null,null,null,null,null,null,null,null,null,null,"2.96"]
[null,null,null,null,null,null,null,null,null,null,null,"2.97"]
[null,null,null,null,null,null,null,null,null,null,null,"2.98"]
[null,null,null,null,null,null,null,null,null,null,null,"2.99"]
[null,null,null,null,null,null,null,null,null,null,null,"3.00"]
[null,null,null,null,null,null,null,null,null,null,null,"3.01"]
[null,null,null,null,null,null,null,null,null,null,null,"3.02"]
[null,null,null,null,null,null,null,null,null,null,null,"3.03"]
[null,null,null,null,null,null,null,null,null,null,null,"3.04"]
[null,null,null,null,null,null,null,null,null,null,null,"3.05"]
[null,null,null,null,null,null,null,null,null,null,null,"3.06"]
[null,null,null,null,null,null,null,null,null,null,null,"3.08"]
[null,null,null,null,null,null,null,null,null,null,null,"3.10"]
[null,null,null,null,null,null,null,null,null,null,null,"3.12"]
[null,null,null,null,null,null,null,null,null,null,null,"3.13"]
[null,null,null,null,null,null,null,null,null,null,null,"3.14"]
[null,null,null,null,null,null,null,null,null,null,null,"3.15"]
[null,null,null,null,null,null,null,null,null,null,null,"3.16"]
[null,null,null,null,null,null,null,null,null,null,null,"3.17"]
[null,null,null,null,null,null,null,null,null,null,null,"3.18"]
[null,null,null,null,null,null,null,null,null,null,null,"3.19"]
[null,null,null,null,null,null,null,null,null,null,null,"3.20"]
[null,null,null,null,null,null,null,null,null,null,null,"3.22"]
[null,null,null,null,null,null,null,null,null,null,null,"3.25"]
[null,null,null,null,null,null,null,null,null,null,null,"3.26"]
[null,null,null,null,null,null,null,null,null,null,null,"3.27"]
[null,null,null,null,null,null,null,null,null,null,null,"3.28"]
[null,null,null,null,null,null,null,null,null,null,null,"3.29"]
[null,null,null,null,null,null,null,null,null,null,null,"3.30"]
[null,null,null,null,null,null,null,null,null,null,null,"3.31"]
[null,null,null,null,null,null,null,null,null,null,null,"3.35"]
[null,null,null,null,null,null,null,null,null,null,null,"3.40"]
[null,null,null,null,null,null,null,null,null,null,null,"3.41"]
[null,null,null,null,null,null,null,null,null,null,null,"3.42"]
[null,null,null,null,null,null,null,null,null,null,null,"3.43"]
[null,null,null,null,null,null,null,null,null,null,null,"3.45"]
[null,null,null,null,null,null,null,null,null,null,null,"3.46"]
[null,null,null,null,null,null,null,null,null,null,null,"3.47"]
[null,null,null,null,null,null,null,null,null,null,null,"3.48"]
[null,null,null,null,null,null,null,null,null,null,null,"3.49"]
[null,null,null,null,null,null,null,null,null,null,null,"3.50"]
[null,null,null,null,null,null,null,null,null,null,null,"3.51"]
[null,null,null,null,null,null,null,null,null,null,null,"3.52"]
[null,null,null,null,null,null,null,null,null,null,null,"3.53"]
[null,null,null,null,null,null,null,null,null,null,null,"3.54"]
[null,null,null,null,null,null,null,null,null,null,null,"3.55"]
[null,null,null,null,null,null,null,null,null,null,null,"3.57"]
[null,null,null,null,null,null,null,null,null,null,null,"3.60"]
[null,null,null,null,null,null,null,null,null,null,null,"3.65"]
[null,null,null,null,null,null,null,null,null,null,null,"3.70"]
[null,null,null,null,null,null,null,null,null,null,null,"3.75"]
[null,null,null,null,null,null,null,null,null,null,null,"3.78"]
[null,null,null,null,null,null,null,null,null,null,null,"3.79"]
[null,null,null,null,null,null,null,null,null,null,null,"3.80"]
[null,null,null,null,null,null,null,null,null,null,null,"3.83"]
[null,null,null,null,null,null,null,null,null,null,null,"3.85"]
[null,null,null,null,null,null,null,null,null,null,null,"3.88"]
[null,null,null,null,null,null,null,null,null,null,null,"3.90"]
[null,null,null,null,null,null,null,null,null,null,null,"3.91"]
[null,null,null,null,null,null,null,null,null,null,null,"3.92"]
[null,null,null,null,null,null,null,null,null,null,null,"3.94"]
[null,null,null,null,null,null,null,null,null,null,null,"3.95"]
[null,null,null,null,null,null,null,null,null,null,null,"3.96"]
[null,null,null,null,null,null,null,null,null,null,null,"3.97"]
[null,null,null,null,null,null,null,null,null,null,null,"3.98"]
[null,null,null,null,null,null,null,null,null,null,null,"3.99"]
[null,null,null,null,null,null,null,null,null,null,null,"4.00"]
[null,null,null,null,null,null,null,null,null,null,null,"4.01"]
[null,null,null,null,null,null,null,null,null,null,null,"4.02"]
[null,null,null,null,null,null,null,null,null,null,null,"4.03"]
[null,null,null,null,null,null,null,null,null,null,null,"4.04"]
[null,null,null,null,null,null,null,null,null,null,null,"4.05"]
[null,null,null,null,null,null,null,null,null,null,null,"4.08"]
[null,null,null,null,null,null,null,null,null,null,null,"4.09"]
[null,null,null,null,null,null,null,null,null,null,null,"4.10"]
[null,null,null,null,null,null,null,null,null,null,null,"4.15"]
[null,null,null,null,null,null,null,null,null,null,null,"4.16"]
[null,null,null,null,null,null,null,null,null,null,null,"4.20"]
[null,null,null,null,null,null,null,null,null,null,null,"4.22"]
[null,null,null,null,null,null,null,null,null,null,null,"4.23"]
[null,null,null,null,null,null,null,null,null,null,null,"4.24"]
[null,null,null,null,null,null,null,null,null,null,null,"4.25"]
[null,null,null,null,null,null,null,null,null,null,null,"4.27"]
[null,null,null,null,null,null,null,null,null,null,null,"4.30"]
[null,null,null,null,null,null,null,null,null,null,null,"4.35"]
[null,null,null,null,null,null,null,null,null,null,null,"4.40"]
[null,null,null,null,null,null,null,null,null,null,null,"4.45"]
[null,null,null,null,null,null,null,null,null,null,null,"4.48"]
[null,null,null,null,null,null,null,null,null,null,null,"4.49"]
[null,null,null,null,null,null,null,null,null,null,null,"4.50"]
[null,null,null,null,null,null,null,null,null,null,null,"4.51"]
[null,null,null,null,null,null,null,null,null,null,null,"4.52"]
[null,null,null,null,null,null,null,null,null,null,null,"4.55"]
[null,null,null,null,null,null,null,null,null,null,null,"4.57"]
[null,null,null,null,null,null,null,null,null,null,null,"4.60"]
[null,null,null,null,null,null,null,null,null,null,null,"4.65"]
[null,null,null,null,null,null,null,null,null,null,null,"4.70"]
[null,null,null,null,null,null,null,null,null,null,null,"4.75"]
[null,null,null,null,null,null,null,null,null,null,null,"4.78"]
[null,null,null,null,null,null,null,null,null,null,null,"4.80"]
[null,null,null,null,null,null,null,null,null,null,null,"4.82"]
[null,null,null,null,null,null,null,null,null,null,null,"4.84"]
[null,null,null,null,null,null,null,null,null,null,null,"4.85"]
[null,null,null,null,null,null,null,null,null,null,null,"4.90"]
[null,null,null,null,null,null,null,null,null,null,null,"4.95"]
[null,null,null,null,null,null,null,null,null,null,null,"4.96"]
[null,null,null,null,null,null,null,null,null,null,null,"4.97"]
[null,null,null,null,null,null,null,null,null,null,null,"4.98"]
[null,null,null,null,null,null,null,null,null,null,null,"4.99"]
[null,null,null,null,null,null,null,null,null,null,null,"5.00"]
[null,null,null,null,null,null,null,null,null,null,null,"5.01"]
[null,null,null,null,null,null,null,null,null,null,null,"5.02"]
[null,null,null,null,null,null,null,null,null,null,null,"5.03"]
[null,null,null,null,null,null,null,null,null,null,null,"5.04"]
[null,null,null,null,null,null,null,null,null,null,null,"5.05"]
[null,null,null,null,null,null,null,null,null,null,null,"5.06"]
[null,null,null,null,null,null,null,null,null,null,null,"5.07"]
[null,null,null,null,null,null,null,null,null,null,null,"5.08"]
[null,null,null,null,null,null,null,null,null,null,null,"5.10"]
[null,null,null,null,null,null,null,null,null,null,null,"5.14"]
[null,null,null,null,null,null,null,null,null,null,null,"5.15"]
[null,null,null,null,null,null,null,null,null,null,null,"5.19"]
[null,null,null,null,null,null,null,null,null,null,null,"5.20"]
[null,null,null,null,null,null,null,null,null,null,null,"5.25"]
[null,null,null,null,null,null,null,null,null,null,null,"5.30"]
[null,null,null,null,null,null,null,null,null,null,null,"5.32"]
[null,null,null,null,null,null,null,null,null,null,null,"5.35"]
[null,null,null,null,null,null,null,null,null,null,null,"5.40"]
[null,null,null,null,null,null,null,null,null,null,null,"5.45"]
[null,null,null,null,null,null,null,null,null,null,null,"5.48"]
[null,null,null,null,null,null,null,null,null,null,null,"5.49"]
[null,null,null,null,null,null,null,null,null,null,null,"5.50"]
[null,null,null,null,null,null,null,null,null,null,null,"5.51"]
[null,null,null,null,null,null,null,null,null,null,null,"5.52"]
[null,null,null,null,null,null,null,null,null,null,null,"5.53"]
[null,null,null,null,null,null,null,null,null,null,null,"5.54"]
[null,null,null,null,null,null,null,null,null,null,null,"5.55"]
[null,null,null,null,null,null,null,null,null,null,null,"5.57"]
[null,null,null,null,null,null,null,null,null,null,null,"5.60"]
[null,null,null,null,null,null,null,null,null,null,null,"5.65"]
[null,null,null,null,null,null,null,null,null,null,null,"5.70"]
[null,null,null,null,null,null,null,null,null,null,null,"5.72"]
[null,null,null,null,null,null,null,null,null,null,null,"5.73"]
[null,null,null,null,null,null,null,null,null,null,null,"5.75"]
[null,null,null,null,null,null,null,null,null,null,null,"5.79"]
[null,null,null,null,null,null,null,null,null,null,null,"5.80"]
[null,null,null,null,null,null,null,null,null,null,null,"5.85"]
[null,null,null,null,null,null,null,null,null,null,null,"5.90"]
[null,null,null,null,null,null,null,null,null,null,null,"5.94"]
[null,null,null,null,null,null,null,null,null,null,null,"5.95"]
[null,null,null,null,null,null,null,null,null,null,null,"5.96"]
[null,null,null,null,null,null,null,null,null,null,null,"5.97"]
[null,null,null,null,null,null,null,null,null,null,null,"5.98"]
[null,null,null,null,null,null,null,null,null,null,null,"5.99"]
[null,null,null,null,null,null,null,null,null,null,null,"6.00"]
[null,null,null,null,null,null,null,null,null,null,null,"6.01"]
[null,null,null,null,null,null,null,null,null,null,null,"6.02"]
[null,null,null,null,null,null,null,null,null,null,null,"6.03"]
[null,null,null,null,null,null,null,null,null,null,null,"6.04"]
[null,null,null,null,null,null,null,null,null,null,null,"6.05"]
[null,null,null,null,null,null,null,null,null,null,null,"6.06"]
[null,null,null,null,null,null,null,null,null,null,null,"6.10"]
[null,null,null,null,null,null,null,null,null,null,null,"6.11"]
[null,null,null,null,null,null,null,null,null,null,null,"6.18"]
[null,null,null,null,null,null,null,null,null,null,null,"6.20"]
[null,null,null,null,null,null,null,null,null,null,null,"6.25"]
[null,null,null,null,null,null,null,null,null,null,null,"6.30"]
[null,null,null,null,null,null,null,null,null,null,null,"6.35"]
[null,null,null,null,null,null,null,null,null,null,null,"6.39"]
[null,null,null,null,null,null,null,null,null,null,null,"6.40"]
[null,null,null,null,null,null,null,null,null,null,null,"6.45"]
[null,null,null,null,null,null,null,null,null,null,null,"6.48"]
[null,null,null,null,null,null,null,null,null,null,null,"6.49"]
[null,null,null,null,null,null,null,null,null,null,null,"6.50"]
[null,null,null,null,null,null,null,null,null,null,null,"6.51"]
[null,null,null,null,null,null,null,null,null,null,null,"6.52"]
[null,null,null,null,null,null,null,null,null,null,null,"6.55"]
[null,null,null,null,null,null,null,null,null,null,null,"6.60"]
[null,null,null,null,null,null,null,null,null,null,null,"6.70"]
[null,null,null,null,null,null,null,null,null,null,null,"6.79"]
[null,null,null,null,null,null,null,null,null,null,null,"6.80"]
[null,null,null,null,null,null,null,null,null,null,null,"6.89"]
[null,null,null,null,null,null,null,null,null,null,null,"6.90"]
[null,null,null,null,null,null,null,null,null,null,null,"6.98"]
[null,null,null,null,null,null,null,null,null,null,null,"6.99"]
[null,null,null,null,null,null,null,null,null,null,null,"7.00"]
[null,null,null,null,null,null,null,null,null,null,null,"7.01"]
[null,null,null,null,null,null,null,null,null,null,null,"7.02"]
[null,null,null,null,null,null,null,null,null,null,null,"7.05"]
[null,null,null,null,null,null,null,null,null,null,null,"7.10"]
[null,null,null,null,null,null,null,null,null,null,null,"7.19"]
[null,null,null,null,null,null,null,null,null,null,null,"7.20"]
[null,null,null,null,null,null,null,null,null,null,null,"7.30"]
[null,null,null,null,null,null,null,null,null,null,null,"7.40"]
[null,null,null,null,null,null,null,null,null,null,null,"7.48"]
[null,null,null,null,null,null,null,null,null,null,null,"7.49"]
[null,null,null,null,null,null,null,null,null,null,null,"7.50"]
[null,null,null,null,null,null,null,null,null,null,null,"7.51"]
[null,null,null,null,null,null,null,null,null,null,null,"7.52"]
[null,null,null,null,null,null,null,null,null,null,null,"7.55"]
[null,null,null,null,null,null,null,null,null,null,null,"7.60"]
[null,null,null,null,null,null,null,null,null,null,null,"7.65"]
[null,null,null,null,null,null,null,null,null,null,null,"7.70"]
[null,null,null,null,null,null,null,null,null,null,null,"7.75"]
[null,null,null,null,null,null,null,null,null,null,null,"7.80"]
[null,null,null,null,null,null,null,null,null,null,null,"7.85"]
[null,null,null,null,null,null,null,null,null,null,null,"7.90"]
[null,null,null,null,null,null,null,null,null,null,null,"7.95"]
[null,null,null,null,null,null,null,null,null,null,null,"7.96"]
[null,null,null,null,null,null,null,null,null,null,null,"7.97"]
[null,null,null,null,null,null,null,null,null,null,null,"7.98"]
[null,null,null,null,null,null,null,null,null,null,null,"7.99"]
[null,null,null,null,null,null,null,null,null,null,null,"8.00"]
[null,null,null,null,null,null,null,null,null,null,null,"8.01"]
[null,null,null,null,null,null,null,null,null,null,null,"8.02"]
[null,null,null,null,null,null,null,null,null,null,null,"8.03"]
[null,null,null,null,null,null,null,null,null,null,null,"8.04"]
[null,null,null,null,null,null,null,null,null,null,null,"8.05"]
[null,null,null,null,null,null,null,null,null,null,null,"8.10"]
[null,null,null,null,null,null,null,null,null,null,null,"8.20"]
[null,null,null,null,null,null,null,null,null,null,null,"8.30"]
[null,null,null,null,null,null,null,null,null,null,null,"8.40"]
[null,null,null,null,null,null,null,null,null,null,null,"8.50"]
[null,null,null,null,null,null,null,null,null,null,null,"8.70"]
[null,null,null,null,null,null,null,null,null,null,null,"8.90"]
[null,null,null,null,null,null,null,null,null,null,null,"9.00"]
[null,null,null,null,null,null,null,null,null,null,null,"9.02"]
[null,null,null,null,null,null,null,null,null,null,null,"9.10"]
[null,null,null,null,null,null,null,null,null,null,null,"9.30"]
[null,null,null,null,null,null,null,null,null,null,null,"9.40"]
[null,null,null,null,null,null,null,null,null,null,null,"9.50"]
[null,null,null,null,null,null,null,null,null,null,null,"9.70"]
[null,null,null,null,null,null,null,null,null,null,null,"9.90"]
[null,null,null,null,null,null,null,null,null,null,null,"9.93"]
[null,null,null,null,null,null,null,null,null,null,null,"9.94"]
[null,null,null,null,null,null,null,null,null,null,null,"9.95"]
[null,null,null,null,null,null,null,null,null,null,null,"9.96"]
[null,null,null,null,null,null,null,null,null,null,null,"9.97"]
[null,null,null,null,null,null,null,null,null,null,null,"9.98"]
[null,null,null,null,null,null,null,null,null,null,null,"9.99"]
[null,null,null,null,null,null,null,null,null,null,null,"10.00"]
[null,null,null,null,null,null,null,null,null,null,null,"10.01"]
[null,null,null,null,null,null,null,null,null,null,null,"10.02"]
[null,null,null,null,null,null,null,null,null,null,null,"10.04"]
[null,null,null,null,null,null,null,null,null,null,null,"10.05"]
[null,null,null,null,null,null,null,null,null,null,null,"10.10"]
[null,null,null,null,null,null,null,null,null,null,null,"10.40"]
[null,null,null,null,null,null,null,null,null,null,null,"10.50"]
[null,null,null,null,null,null,null,null,null,null,null,"10.60"]
[null,null,null,null,null,null,null,null,null,null,null,"11.00"]
[null,null,null,null,null,null,null,null,null,null,null,"11.50"]
[null,null,null,null,null,null,null,null,null,null,null,"11.80"]
[null,null,null,null,null,null,null,null,null,null,null,"12.00"]

{"sheet":"Temp","index":5,"n_rows":21,"n_cols":12,"rows_kept":21,"cut":false,"hidden":false,"merged":[]}
[]
["Matière","Type","Opération","Diamètre","Nombre de dents Z","Longueur","Référence","Fournisseur","Emplacement","Stock","Beeper"]
["Alu","CYLINDRIQUE","Ebauche",1,3,"Normale","","Fraisa","","3","5",""]
["Inox","TORIQUE","Finition",4,6,"Mi-longue","","Fraisa","","13","11"]
["Titane","TORIQUE","Finition","3",5,"Extra-longue","","Fraisa","","5","3"]
["Titane","TORIQUE","Finition","4","6","Longue","","Fraisa","","5","6"]
["Titane","HÉMISPHÉRIQUES","Finition","4","6","Longue","","Fraisa","","8","6"]
["Inox","CYLINDRIQUE","Ravageuse","6","6","Mi-longue","","Fraisa","","4","6"]
["Titane","CYLINDRIQUE","Ebauche/Finition","20","6","Mi-longue","","Fraisa","","7","6"]
["Acier","CYLINDRIQUE","Ravageuse","20","5","Normale","","Fraisa","","3","4"]
["Acier","HÉMISPHÉRIQUES","Finition","10","3","Normale","","Fraisa","","5","3"]
["Acier","TORIQUE","Ebauche","16","4","Mi-longue","","Fraisa","","3","5"]
["Alu","CYLINDRIQUE","Ebauche","16","4","Extra-longue","","Fraisa","","7","3"]
["Alu","TORIQUE","Finition","13","4","Mi-longue","","Fraisa","","4","2"]
["Titane","CYLINDRIQUE","Ebauche","8","4","Mi-longue","","Fraisa","","3","2"]
["Alu","CYLINDRIQUE","Ebauche","1","2","Courte","Test","Fraisa","Test","1","1"]
["Inox","HÉMISPHÉRIQUES","Finition","4","5","Longue","","Fraisa","","5","6"]
["Alu","CYLINDRIQUE","Ebauche","1","2","Courte","","","","3",""]
["Alu","CYLINDRIQUE","Ebauche","3","3","Courte","","","","3",""]
["Titane","HÉMISPHÉRIQUES","Finition","4","5","Mi-longue","","","","7",""]
["Acier","HÉMISPHÉRIQUES","Ebauche/Finition","3","5","Mi-longue","","Fraisa","","2","4"]